bitfinex/quotes_ETHUSD_20241022
["timestamp","ask_amount","ask_price","bid_price","bid_amount"]
[1729560548246,0.8201,2647.2,2646.6,4.58684]
[1729560548437,3.77786,2647.0,2646.6,0.8085]
[1729560549235,4.59781,2647.2,2646.6,0.8085]
[1729560549236,4.59778,2647.2,2646.6,4.58693]
[1729560549556,5.435295,2647.2,2646.6,4.58693]
[1729560550361,9.212955,2647.2,2646.6,4.58693]
[1729560552273,5.435275,2647.2,2646.6,4.58693]
[1729560552727,3.77772,2647.1,2646.6,4.58693]
[1729560553154,2.08552573,2647.5,2646.7,0.8175]
[1729560553363,2.08552573,2647.5,2647.1,4.59519]
[1729560553559,2.08552573,2647.5,2647.1,0.8175]
[1729560554125,4.53978,2647.6,2647.1,0.8175]
[1729560554469,0.7627,2647.6,2647.1,4.59517]
[1729560555055,4.5397,2647.6,2647.1,4.59517]
[1729560556677,3.77744,2647.3,2646.8,0.8222]
[1729560556963,3.77744,2647.3,2646.8,4.60029]
[1729560557485,4.23123,2647.5,2646.8,8.37833]
[1729560559173,4.23123,2647.5,2646.9,3.77799]
[1729560559174,3.77729,2647.4,2646.9,3.77799]
[1729560561090,3.77729,2647.4,2646.9,3.77791]
[1729560561684,2.08552573,2647.5,2647.2,3.77756]
[1729560562351,2.08552573,2647.5,2647.3,4.56291]
[1729560562897,0.01890265,2648.0,2647.8,3.7767]
[1729560563189,7.48,2648.5,2647.9,3.77645]
[1729560563190,2.08552573,2648.3,2647.9,3.77645]
[1729560563397,0.8028,2648.5,2647.9,3.77651]
[1729560563603,0.8028,2648.5,2648.2,3.77612]
[1729560563803,0.8028,2648.5,2647.8,4.51115577]
[1729560563804,0.8028,2648.5,2647.9,3.77651]
[1729560563959,4.57857,2648.5,2647.9,8.46214658]
[1729560564151,3.77589,2648.4,2647.9,0.90915658]
[1729560564689,3.77589,2648.4,2647.7,4.58065]
[1729560565096,3.77589,2648.4,2647.7,8.3574]
[1729560565397,3.77589,2648.4,2647.7,4.58065]
[1729560565760,3.77589,2648.4,2647.7,8.3574]
[1729560566656,0.8028,2648.5,2647.7,0.8039]
[1729560566869,3.77623,2648.2,2647.5,4.56305]
[1729560567063,3.77623,2648.2,2647.6,1.12384718]
[1729560567295,3.77623,2648.2,2647.5,8.3401]
[1729560567482,3.77632,2648.1,2647.5,4.56305]
[1729560568901,3.77632,2648.1,2647.6,3.777]
[1729560569060,3.77632,2648.1,2647.5,4.56304]
[1729560569485,3.77632,2648.1,2647.6,3.777]
[1729560570695,7.5525,2648.2,2647.6,3.777]
[1729560571057,3.77639,2648.1,2647.5,0.786]
[1729560571254,3.77639,2648.1,2647.5,4.56312]
[1729560571596,4.61275,2648.2,2647.6,3.77698]
[1729560571898,3.77636,2648.1,2647.5,0.786]
[1729560572204,3.77636,2648.1,2647.5,4.5631]
[1729560572388,4.61275,2648.2,2647.6,3.77696]
[1729560572608,3.77636,2648.1,2647.6,3.77696]
[1729560574522,3.77644,2648.0,2647.5,0.786]
[1729560574743,3.77644,2648.0,2647.5,4.56313]
[1729560575026,3.77644,2648.0,2647.5,4.56311]
[1729560575027,0.8226,2647.9,2647.5,4.56311]
[1729560576503,1.282504,2647.9,2647.2,4.59568]
[1729560576824,3.77673,2647.8,2647.3,3.77732]
[1729560577030,3.77702,2647.6,2647.2,0.8182]
[1729560577838,3.77686,2647.7,2647.2,0.8182]
[1729560578021,1.09216797,2647.7,2647.2,4.59573]
[1729560578393,1.09216797,2647.7,2647.2,8.37322]
[1729560578896,1.09216797,2647.7,2647.2,4.59569]
[1729560580807,3.77701,2647.6,2647.1,0.7743]
[1729560582496,0.8293,2647.5,2647.1,0.7743]
[1729560582700,3.77751,2647.3,2646.7,0.7743]
[1729560583002,3.77751,2647.3,2646.8,3.77805]
[1729560587706,7.55507,2647.3,2646.7,0.7743]
[1729560588048,3.77751,2647.3,2646.7,4.55256]
[1729560589199,3.77774,2647.1,2646.6,7.55664]
[1729560589546,0.8041,2647.1,2646.7,3.77828]
[1729560590739,0.8041,2647.1,2646.8,3.77814]
[1729560591238,4.59921,2647.3,2646.8,3.77814]
[1729560591639,4.59921,2647.3,2646.9,0.8196]
[1729560591935,3.7776,2647.2,2646.9,0.8196]
[1729560592110,3.7776,2647.2,2646.7,0.8196]
[1729560592707,4.59921,2647.3,2646.7,4.59785]
[1729560592947,8.37677,2647.3,2646.7,4.59785]
[1729560593841,4.59921,2647.3,2646.7,4.59785]
[1729560594342,3.77766,2647.2,2646.7,0.8196]
[1729560595354,3.77766,2647.2,2646.7,4.59787]
[1729560597416,0.8217,2647.3,2646.8,3.77813]
[1729560598146,3.7776,2647.2,2646.7,0.8196]
[1729560598446,3.7776,2647.2,2646.7,4.59785]
[1729560598652,0.8217,2647.3,2646.7,4.59785]
[1729560599153,0.8217,2647.3,2646.8,3.77813]
[1729560600353,4.59913,2647.3,2646.8,3.77813]
[1729560601240,0.8217,2647.3,2646.8,3.77813]
[1729560601411,4.59916,2647.3,2646.8,3.77813]
[1729560601758,0.8217,2647.3,2646.7,0.8196]
[1729560601930,7.55526,2647.2,2646.7,0.8196]
[1729560602133,3.77758,2647.2,2646.7,0.8196]
[1729560602860,7.55523,2647.2,2646.7,0.8196]
[1729560603016,4.615273,2647.2,2646.7,0.8196]
[1729560603415,4.615273,2647.2,2646.7,4.59788]
[1729560603929,4.615273,2647.2,2646.7,0.8196]
[1729560604132,4.615273,2647.2,2646.2,4.5414]
[1729560604133,0.7876,2647.1,2646.2,4.5414]
[1729560604375,0.7876,2646.6,2646.0,6.18865006]
[1729560604668,3.77873,2646.4,2645.9,5.42632006]
[1729560604863,3.77873,2646.4,2646.0,1.64698006]
[1729560605025,2.43458006,2646.6,2645.9,5.42632006]
[1729560605224,3.77867,2646.5,2646.0,1.64698006]
[1729560605422,0.7876,2646.6,2646.2,1.64698006]
[1729560605625,2.08552573,2646.9,2646.5,6.23642006]
[1729560605825,2.08552573,2646.9,2646.8,5.42512006]
[1729560606157,0.7811,2647.2,2646.9,3.77799]
[1729560606350,0.7811,2647.4,2647.0,3.77785]
[1729560606529,0.7811,2647.4,2646.9,4.58889]
[1729560606933,0.7811,2647.4,2646.9,8.36678]
[1729560607229,0.7811,2647.4,2646.9,4.58879]
[1729560608024,3.77702,2647.6,2647.1,3.77769]
[1729560608359,0.80510265,2647.7,2647.3,3.77738]
[1729560608560,3.77661,2647.9,2647.3,3.77738]
[1729560608561,4.56281,2647.9,2647.3,4.60708]
[1729560609269,4.56281,2647.9,2647.3,8.38442]
[1729560609423,4.56281,2647.9,2647.3,4.60704]
[1729560609623,0.7862,2647.9,2647.5,3.77713]
[1729560609822,3.77644,2648.0,2647.5,3.77713]
[1729560610461,6.64805573,2648.1,2647.5,3.77703]
[1729560610766,0.7862,2648.1,2647.6,3.77698]
[1729560610932,4.5625,2648.1,2647.6,3.77698]
[1729560611319,0.7862,2648.1,2647.7,3.77685]
[1729560611528,4.57276,2648.3,2647.7,4.56655]
[1729560611849,0.7967,2648.3,2647.9,3.77646]
[1729560612061,0.7967,2648.6,2647.8,3.75300036]
[1729560612271,0.7967,2648.6,2648.2,4.56576]
[1729560612571,0.81560265,2648.8,2648.2,4.56576]
[1729560612728,0.7967,2648.8,2648.2,4.56576]
[1729560612928,4.57199,2648.8,2648.2,4.56576]
[1729560613125,3.77582,2648.5,2647.9,0.8298]
[1729560613443,0.7971,2648.4,2647.7,0.8298]
[1729560613659,3.77611,2648.3,2647.7,4.60665]
[1729560614410,0.75,2648.6,2648.0,3.77634]
[1729560614563,0.75,2648.6,2648.1,3.77625]
[1729560615180,0.75,2648.6,2648.2,3.77614]
[1729560616112,4.57613,2648.9,2648.3,3.77599]
[1729560616295,9.30520234,2648.9,2648.3,3.77599]
[1729560616699,5.52995234,2648.9,2648.3,3.77599]
[1729560617016,5.52995234,2648.9,2648.3,3.77592]
[1729560617719,4.57613,2648.9,2648.3,3.77592]
[1729560617926,0.8009,2648.9,2648.4,3.77583]
[1729560618678,0.8009,2648.9,2648.3,3.7759]
[1729560618891,0.8009,2648.9,2648.4,3.77577]
[1729560619088,0.8009,2648.9,2648.3,3.7759]
[1729560619089,0.8009,2648.9,2648.5,3.77568]
[1729560619622,0.8009,2648.9,2648.3,3.7759]
[1729560619783,5.24230057,2648.9,2648.1,4.56453]
[1729560620113,3.77544,2648.7,2648.2,3.77613]
[1729560622524,4.57617,2648.9,2648.3,3.77595]
[1729560623257,0.8009,2648.9,2648.3,3.77595]
[1729560623431,0.7513,2649.1,2648.5,3.77572]
[1729560623637,4.52624,2649.1,2648.5,3.77563]
[1729560623834,4.52624,2649.1,2648.4,4.975945]
[1729560624037,4.52624,2649.1,2648.4,4.59835]
[1729560624956,3.77518,2648.9,2648.4,4.59835]
[1729560625173,3.77518,2648.9,2648.1,6.77618]
[1729560625356,0.8242,2648.8,2648.3,3.0]
[1729560625563,0.8242,2648.8,2648.3,6.77599]
[1729560625929,0.8242,2648.8,2648.4,3.77579]
[1729560626130,0.8242,2648.8,2648.3,6.77599]
[1729560626441,0.8242,2648.8,2648.3,7.534439]
[1729560626628,0.8242,2648.8,2648.3,11.310329]
[1729560626961,0.8242,2648.8,2648.3,7.534419]
[1729560627166,0.8242,2648.8,2648.4,3.77583]
[1729560628162,4.59953,2648.8,2648.3,0.758529]
[1729560628672,0.8242,2648.8,2648.3,8.310509]
[1729560629162,0.8242,2648.8,2648.3,4.534519]
[1729560629362,0.8242,2648.8,2648.4,3.77583]
[1729560630211,0.8242,2648.8,2648.5,0.8310349]
[1729560631519,3.77506,2649.0,2648.6,3.77555]
[1729560631520,0.8164,2649.0,2648.6,3.77555]
[1729560631890,0.8164,2649.0,2648.6,4.58785]
[1729560632087,2.21117103,2649.2,2648.6,0.8123]
[1729560632292,3.02757103,2649.2,2648.7,3.77541]
[1729560632617,3.02757103,2649.2,2648.7,3.77543]
[1729560633116,3.02757103,2649.2,2648.7,4.69477749]
[1729560633713,2.21117103,2649.2,2648.8,0.07550266]
[1729560633895,0.1256453,2649.2,2649.1,4.59126]
[1729560634095,0.1256453,2649.2,2649.1,0.8164]
[1729560634491,0.1256453,2649.2,2649.1,1.653018]
[1729560634711,0.1256453,2649.2,2649.1,5.427878]
[1729560634879,0.1256453,2649.2,2649.1,1.653018]
[1729560637259,0.1256453,2649.2,2649.1,0.8164]
[1729560637456,0.1256453,2649.2,2649.0,0.07549059]
[1729560637766,0.1256453,2649.2,2648.9,3.7548]
[1729560641657,0.1256453,2649.2,2648.6,3.7755]
[1729560641860,0.1256453,2649.2,2648.8,3.77525]
[1729560642077,0.1256453,2649.2,2648.9,0.38507407]
[1729560642665,0.1256453,2649.2,2648.9,4.16022407]
[1729560643288,0.1256453,2649.2,2648.9,0.38507407]
[1729560643646,0.1256453,2649.2,2648.9,7.16020407]
[1729560644088,0.1256453,2649.2,2648.9,7.23569734]
[1729560644290,0.1256453,2649.2,2649.0,1.18232973]
[1729560646205,0.1256453,2649.2,2649.0,5.03273292]
[1729560646392,0.1256453,2649.2,2649.0,4.95723973]
[1729560647606,0.1256453,2649.2,2649.0,8.73214973]
[1729560647768,0.1256453,2649.2,2649.1,3.77486]
[1729560647969,0.1256453,2649.2,2649.1,4.72356027]
[1729560648169,0.1256453,2649.2,2649.1,5.55656027]
[1729560648476,0.1256453,2649.2,2649.1,8.48106997]
[1729560650511,0.1256453,2649.2,2649.1,4.70620997]
[1729560650680,0.1256453,2649.2,2649.1,3.87320997]
[1729560650882,0.1256453,2649.2,2648.9,3.77513]
[1729560651208,0.1256453,2649.2,2649.0,3.0]
[1729560651368,0.1256453,2649.2,2649.0,10.54982]
[1729560651595,0.1256453,2649.2,2649.0,6.77498]
[1729560651794,0.1256453,2649.2,2649.1,1.04524477]
[1729560652011,0.1256453,2649.2,2648.9,3.0]
[1729560652211,0.1256453,2649.2,2648.9,6.77503]
[1729560652396,0.1256453,2649.2,2648.9,3.0]
[1729560652594,0.8028,2649.1,2648.6,3.77548]
[1729560653937,0.8028,2649.1,2648.5,3.0]
[1729560653938,4.57767,2649.1,2648.5,3.0]
[1729560654134,0.8218,2649.0,2648.4,3.77577]
[1729560654438,0.8218,2649.0,2648.2,3.77611]
[1729560654439,4.597,2648.9,2648.2,7.55215]
[1729560654802,4.597,2648.9,2648.3,3.77596]
[1729560656033,4.597,2648.9,2648.4,3.77585]
[1729560656543,4.597,2648.9,2648.3,3.77597]
[1729560658006,5.48122215,2648.9,2648.2,3.77604]
[1729560658207,5.48122215,2648.9,2648.2,7.55209]
[1729560658402,5.48122215,2648.9,2648.3,3.77599]
[1729560659012,5.48122215,2648.9,2648.2,3.77604]
[1729560659231,4.597,2648.9,2648.2,3.77604]
[1729560659433,3.7758,2648.5,2648.1,0.768]
[1729560659639,0.8182,2648.7,2648.0,3.77634]
[1729560659640,4.5428,2648.6,2648.0,3.77634]
[1729560660327,5.374629,2648.6,2648.0,3.77634]
[1729560660522,3.77574,2648.5,2647.9,6.77652]
[1729560661022,3.77574,2648.5,2647.8,3.77664]
[1729560661228,1.599029,2648.6,2647.7,0.8187]
[1729560661229,1.599029,2648.6,2648.0,3.77632]
[1729560661450,1.599029,2648.6,2648.1,3.77628]
[1729560661959,3.77574,2648.5,2648.0,3.77632]
[1729560662137,1.599029,2648.6,2648.0,7.55266]
[1729560662334,0.7672,2648.6,2648.0,7.55266]
[1729560662569,0.7672,2648.6,2647.7,3.67746767]
[1729560662771,0.7672,2648.6,2648.3,3.77588]
[1729560664962,0.7672,2648.6,2648.4,3.77585]
[1729560665173,0.7672,2648.6,2648.3,3.85139162]
[1729560665462,0.7672,2648.6,2648.3,3.77588]
[1729560665822,2.08552573,2648.8,2648.6,3.77557]
[1729560666247,0.791,2649.0,2648.6,3.77557]
[1729560666985,0.8793453,2649.2,2648.6,3.77557]
[1729560667159,4.6540853,2649.2,2648.7,4.152887]
[1729560667560,4.6540853,2649.2,2648.7,4.978487]
[1729560667764,0.8793453,2649.2,2648.8,3.77526]
[1729560667946,0.8793453,2649.2,2649.0,3.77497]
[1729560668154,0.8793453,2649.2,2648.8,3.77526]
[1729560668490,0.8793453,2649.2,2648.9,4.2729817]
[1729560668985,0.8793453,2649.2,2648.9,4.2729417]
[1729560669184,0.8793453,2649.2,2648.9,0.4978417]
[1729560669578,0.8793453,2649.2,2648.9,4.2729817]
[1729560669773,0.8793453,2649.2,2648.9,4.34847557]
[1729560669774,0.1256453,2649.2,2648.9,4.34847557]
[1729560670096,0.1256453,2649.2,2649.0,0.43484756]
[1729560670258,0.1256453,2649.2,2649.0,4.20978756]
[1729560670799,0.1256453,2649.2,2649.1,0.7717]
[1729560670955,0.1256453,2649.2,2649.1,8.29952107]
[1729560671162,0.1256453,2649.2,2649.1,12.5247487]
[1729560671703,0.1256453,2649.2,2649.0,0.43484756]
[1729560671876,0.1256453,2649.2,2648.8,3.77519]
[1729560672276,0.1256453,2649.2,2649.0,3.77499]
[1729560672489,0.1256453,2649.2,2649.1,3.77486]
[1729560673362,0.1256453,2649.2,2649.0,3.77499]
[1729560674132,0.1256453,2649.2,2648.8,3.77528]
[1729560674408,0.9004453,2649.2,2648.8,3.77528]
[1729560674765,0.9004453,2649.2,2648.8,3.7752]
[1729560674966,0.9004453,2649.2,2648.9,3.77512]
[1729560675206,0.9004453,2649.2,2648.8,7.55041]
[1729560675377,0.9004453,2649.2,2648.9,3.77503]
[1729560675780,0.9004453,2649.2,2648.8,3.77527]
[1729560676477,0.9004453,2649.2,2648.8,7.55047]
[1729560676678,0.9004453,2649.2,2648.9,3.77508]
[1729560678321,0.9004453,2649.2,2648.9,3.77505]
[1729560678826,0.9004453,2649.2,2649.0,3.775]
[1729560679004,0.9004453,2649.2,2648.9,3.77505]
[1729560679725,3.77488,2649.1,2648.5,7.52863]
[1729560679891,0.9004453,2649.2,2648.5,7.52863]
[1729560679892,4.6752653,2649.2,2648.6,3.7755]
[1729560680083,5.14279183,2649.2,2648.7,3.7754]
[1729560680594,5.14279183,2649.2,2648.5,7.52863]
[1729560680921,3.77502,2649.0,2648.5,6.77563]
[1729560681088,4.57995,2648.9,2648.3,4.54703]
[1729560681417,3.7759,2648.4,2647.4,0.7711]
[1729560681670,0.8048,2648.3,2647.8,3.77659]
[1729560683029,0.8048,2648.3,2647.8,3.77669]
[1729560683233,0.8048,2648.3,2648.0,3.77642]
[1729560683382,0.8048,2648.3,2648.0,7.55272]
[1729560683581,0.8048,2648.3,2648.0,7.55264]
[1729560683917,0.8048,2648.3,2648.0,3.7763]
[1729560684122,0.7833,2648.5,2648.0,3.7763]
[1729560685122,0.7833,2648.5,2648.0,7.55265]
[1729560685331,0.7833,2648.5,2648.1,3.77627]
[1729560685744,0.7833,2648.5,2647.9,3.85196207]
[1729560685913,0.7833,2648.5,2648.0,3.77638]
[1729560686664,0.7833,2648.5,2647.8,4.968699]
[1729560686952,4.55911,2648.5,2647.9,3.77652]
[1729560687152,3.77616,2648.2,2647.6,3.77689]
[1729560687374,3.77616,2648.2,2647.5,4.56343]
[1729560687375,4.54889,2648.1,2647.5,4.56343]
[1729560687732,0.7725,2648.1,2647.5,0.7863]
[1729560687919,0.7725,2648.1,2647.6,3.77697]
[1729560688119,5.003686,2648.1,2647.6,3.77697]
[1729560689126,1.227366,2648.1,2647.7,3.77678]
[1729560689330,0.7639,2648.5,2648.0,3.77639]
[1729560689635,0.7639,2648.5,2648.0,7.55278]
[1729560690555,0.7639,2648.5,2648.2,3.77613]
[1729560690718,0.7639,2648.5,2648.2,3.77607]
[1729560690921,0.7639,2648.5,2648.3,3.776]
[1729560691119,0.7639,2648.7,2648.3,3.776]
[1729560692264,0.7639,2648.7,2648.2,7.55214]
[1729560692467,0.7639,2648.7,2648.2,3.77607]
[1729560692648,1.50992427,2648.7,2648.3,3.77598]
[1729560692830,0.7639,2648.7,2648.3,3.77598]
[1729560695053,0.7639,2648.7,2648.4,3.77577]
[1729560695438,0.7639,2648.7,2648.5,3.77571]
[1729560695620,0.7535,2648.9,2648.5,3.77571]
[1729560696456,0.7535,2648.9,2648.6,3.77555]
[1729560696833,0.7535,2648.9,2648.6,4.53815284]
[1729560697037,0.7535,2648.9,2648.7,3.77532]
[1729560697237,0.7568,2649.1,2648.8,3.77516]
[1729560697458,0.7568,2649.1,2648.7,3.77532]
[1729560697677,0.7568,2649.1,2648.8,3.77527]
[1729560697835,0.7568,2649.1,2648.3,4.52895]
[1729560697836,0.7568,2649.1,2648.6,3.77549]
[1729560698274,5.3767958,2649.1,2648.5,3.77558]
[1729560698679,1.6018758,2649.1,2648.6,3.77555]
[1729560698888,0.7568,2649.1,2648.7,3.77533]
[1729560699181,0.7568,2649.1,2648.7,3.77532]
[1729560699385,0.7568,2649.1,2648.4,3.75297138]
[1729560699682,0.1256453,2649.2,2649.1,3.77486]
[1729560699849,0.1256453,2649.2,2649.1,7.68569984]
[1729560700049,0.1256453,2649.2,2649.1,7.610216]
[1729560702555,0.1256453,2649.2,2649.1,6.77486]
[1729560702761,0.1256453,2649.2,2649.1,6.85034324]
[1729560703054,0.1256453,2649.2,2649.1,6.77486]
[1729560703256,0.1256453,2649.2,2649.1,6.85034715]
[1729560703453,0.1256453,2649.2,2649.1,6.77486]
[1729560704181,0.1256453,2649.2,2649.1,3.77486]
[1729560705294,0.1256453,2649.2,2648.3,0.01]
[1729560705295,0.793,2649.1,2648.1,0.8041]
[1729560705470,0.793,2649.1,2648.6,3.77549]
[1729560705855,1.2642298,2649.1,2648.6,3.77549]
[1729560706691,5.0391298,2649.1,2648.6,3.77549]
[1729560707041,1.2642298,2649.1,2648.6,3.77549]
[1729560707281,1.2642298,2649.1,2648.7,3.77541]
[1729560707637,0.793,2649.1,2648.7,3.77541]
[1729560707843,0.793,2649.1,2648.9,3.77501]
[1729560708044,0.1256453,2649.2,2648.6,4.32557]
[1729560708244,0.1256453,2649.2,2649.1,3.77486]
[1729560709071,0.1256453,2649.2,2648.8,3.7752]
[1729560709260,0.8016,2649.1,2648.6,3.77545]
[1729560709460,0.8016,2649.1,2648.6,3.7755]
[1729560709664,0.8016,2649.1,2648.6,3.77548]
[1729560710747,1.64144356,2649.1,2648.6,3.77548]
[1729560711083,5.41638356,2649.1,2648.6,3.77548]
[1729560711583,0.8016,2648.9,2648.2,6.77612]
[1729560711742,0.8016,2648.9,2648.2,3.77603]
[1729560711941,1.71099412,2648.9,2648.4,3.77585]
[1729560712190,5.48615412,2648.9,2648.4,3.77585]
[1729560713582,1.71099412,2648.9,2648.4,3.77585]
[1729560713748,5.48614412,2648.9,2648.4,3.77585]
[1729560714494,4.68454412,2648.9,2648.4,3.77585]
[1729560714791,0.8012,2648.7,2648.2,3.77604]
[1729560715147,4.57676,2648.7,2648.0,3.77632]
[1729560715590,4.57676,2648.7,2648.0,7.55266]
[1729560715753,3.77558,2648.6,2648.1,3.77626]
[1729560716087,4.31785374,2648.6,2648.0,7.55267]
[1729560716457,4.31785374,2648.6,2648.0,3.77632]
[1729560716693,0.8012,2648.7,2648.1,3.85179108]
[1729560716852,0.8012,2648.7,2648.3,3.77597]
[1729560717647,0.8012,2648.7,2647.6,3.0]
[1729560717648,3.77753,2647.3,2646.7,3.77821]
[1729560717976,4.45946767,2647.0,2646.1,1.90615479]
[1729560718163,0.782,2646.5,2646.1,1.511536]
[1729560718371,2.30355131,2646.4,2645.8,3.77957]
[1729560718691,2.30355131,2646.4,2645.9,0.835592]
[1729560719054,7.45645767,2646.3,2645.3,3.78017]
[1729560719251,2.12137464,2646.2,2645.5,3.77993]
[1729560719918,5.90038464,2646.2,2645.5,3.77993]
[1729560720053,8.23806767,2646.5,2645.7,3.77967]
[1729560720251,4.5606,2646.5,2645.5,3.7799]
[1729560720452,4.5606,2646.5,2645.6,0.37799]
[1729560720795,4.5606,2646.5,2645.1,0.7757]
[1729560720796,0.782,2646.5,2646.1,3.77913]
[1729560721182,0.8201,2646.9,2646.2,3.77897]
[1729560721981,0.8201,2646.9,2646.4,3.77862]
[1729560722504,0.8201,2646.9,2646.5,3.77855]
[1729560722648,0.8201,2646.9,2646.2,3.77893]
[1729560722849,0.8201,2646.9,2646.4,3.77861]
[1729560723111,0.8201,2646.9,2646.4,7.55723]
[1729560723501,0.8201,2646.9,2646.4,3.77861]
[1729560724070,0.8201,2646.9,2646.3,0.377893]
[1729560724276,0.8201,2646.9,2646.4,3.77862]
[1729560724485,0.8201,2646.9,2646.4,4.5721673]
[1729560726382,0.8201,2646.9,2646.4,8.3507773]
[1729560726582,0.8201,2646.9,2646.5,3.77852]
[1729560726873,0.8201,2646.9,2646.4,4.5721573]
[1729560727420,0.8201,2646.9,2646.4,3.77861]
[1729560727830,3.77858,2646.5,2646.0,3.77923]
[1729560727995,0.7959,2646.4,2646.0,3.77923]
[1729560728201,0.7959,2646.4,2646.1,3.77911]
[1729560728492,0.7959,2646.4,2646.0,3.77923]
[1729560728808,0.7959,2646.4,2646.0,7.55841]
[1729560729120,0.7959,2646.4,2646.0,3.77918]
[1729560729426,5.07967405,2646.4,2645.4,3.78014]
[1729560729730,5.07967405,2646.4,2645.7,3.77964]
[1729560729884,5.07967405,2646.4,2645.9,3.77941]
[1729560730484,0.7959,2646.4,2645.9,3.77941]
[1729560731083,4.57464,2646.4,2645.9,3.77941]
[1729560731430,3.77901,2646.2,2645.5,3.77991]
[1729560731784,3.77901,2646.2,2645.6,3.77977]
[1729560732124,3.77905,2646.2,2645.6,3.77977]
[1729560732802,3.77905,2646.2,2645.5,3.77991]
[1729560732803,5.07127405,2646.1,2645.1,0.59182954]
[1729560732985,0.7875,2645.6,2645.1,3.78046]
[1729560733418,0.7875,2645.6,2645.4,3.78012]
[1729560734834,0.7875,2645.6,2645.2,3.78038]
[1729560735057,3.78,2645.5,2644.9,3.78153]
[1729560735339,4.56738,2645.6,2645.0,3.78062]
[1729560735487,0.7875,2645.6,2644.9,4.91544]
[1729560735686,0.7875,2645.6,2645.1,3.78048]
[1729560736130,0.7875,2645.6,2644.9,4.91544]
[1729560736484,0.7875,2645.6,2645.1,3.78056]
[1729560736726,0.7875,2645.6,2645.3,3.78028]
[1729560736899,0.7875,2645.6,2645.1,4.271977]
[1729560737109,4.56737,2645.6,2645.0,3.78058]
[1729560737288,0.7875,2645.6,2645.0,3.78058]
[1729560737687,0.7875,2645.6,2644.9,0.0008]
[1729560738039,3.78054,2645.2,2644.9,0.0008]
[1729560738238,0.7905,2645.1,2644.9,0.0008]
[1729560740637,0.7905,2645.1,2645.0,3.78071]
[1729560741439,0.7698,2645.5,2645.1,3.78052]
[1729560741749,1.43332257,2645.5,2645.0,3.78071]
[1729560741918,3.78014,2645.4,2644.9,0.0008]
[1729560742239,0.8204,2645.1,2644.9,0.0008]
[1729560742650,4.60099,2645.1,2644.9,0.0008]
[1729560742860,0.460099,2645.0,2644.9,0.0008]
[1729560743357,0.8204,2645.1,2644.9,0.0008]
[1729560744326,0.8204,2645.1,2644.9,3.78164]
[1729560745059,0.8204,2645.1,2644.9,3.78157]
[1729560745551,2.90732573,2645.4,2645.0,3.78071]
[1729560746542,2.90732573,2645.4,2645.1,3.78056]
[1729560746746,0.8218,2645.4,2645.1,3.78046]
[1729560746915,2.88162573,2645.7,2645.4,3.78004]
[1729560747116,0.7961,2645.7,2645.4,7.56009]
[1729560747316,0.7961,2645.7,2645.4,3.78004]
[1729560747832,0.7961,2645.7,2645.2,3.78034]
[1729560748146,4.57627,2645.4,2644.9,0.0008]
[1729560749042,0.7961,2645.4,2645.0,7.56132]
[1729560749379,0.7838,2645.7,2645.2,3.78035]
[1729560749508,0.7838,2645.7,2645.1,3.78053]
[1729560749705,0.7838,2645.7,2645.2,3.78034]
[1729560749947,0.7838,2645.7,2645.3,3.78026]
[1729560750118,0.7838,2645.7,2645.3,7.56042]
[1729560750453,0.7838,2645.7,2645.3,3.78016]
[1729560750610,3.77989,2645.6,2645.1,3.78049]
[1729560751250,1.618088,2645.7,2644.9,0.0008]
[1729560751251,3.78029,2645.3,2644.9,0.0008]
[1729560751453,3.0,2645.1,2644.9,0.0008]
[1729560751617,7.60596571,2645.0,2644.9,0.0008]
[1729560752864,7.61596571,2645.0,2644.9,0.0008]
[1729560753028,10.62596571,2645.0,2644.9,0.0008]
[1729560753435,10.60596571,2645.0,2644.9,0.0008]
[1729560753643,6.66903573,2645.0,2644.9,0.0008]
[1729560755537,10.22903573,2645.0,2644.9,0.0008]
[1729560755719,10.23903573,2645.0,2644.9,0.0008]
[1729560757281,9.68903573,2645.0,2644.9,0.0008]
[1729560757452,9.66903573,2645.0,2644.9,0.0008]
[1729560757795,11.44338271,2645.0,2644.9,0.0008]
[1729560761175,11.99338271,2645.0,2644.9,0.0008]
[1729560761620,12.00338271,2645.0,2644.9,0.0008]
[1729560762283,3.78223,2644.0,2643.4,3.783]
[1729560762513,0.8268,2643.9,2643.4,3.783]
[1729560764011,4.60911,2643.9,2643.4,3.783]
[1729560764188,0.8268,2643.9,2643.4,3.783]
[1729560764383,3.78247,2643.8,2643.2,3.78322]
[1729560764975,1.7160834,2643.9,2643.2,3.78318]
[1729560765175,0.8268,2643.9,2643.3,3.78302]
[1729560765519,0.8268,2643.9,2643.2,3.78318]
[1729560765520,0.8268,2643.9,2643.4,3.78299]
[1729560766892,0.8268,2643.9,2643.4,3.7829]
[1729560767414,0.8268,2643.9,2643.5,3.78281]
[1729560767625,2.08552573,2644.0,2643.6,3.78267]
[1729560769428,2.08552573,2644.0,2643.8,3.78242]
[1729560769583,2.08552573,2644.0,2643.9,3.78229]
[1729560770686,2.08552573,2644.0,2643.8,3.78242]
[1729560771016,0.7528,2643.9,2643.4,3.78294]
[1729560771212,0.7528,2643.9,2643.4,3.78291]
[1729560772216,4.5352,2643.9,2643.2,8.34597]
[1729560772527,3.78253,2643.8,2643.2,8.34595]
[1729560772720,6.00382998,2643.9,2643.4,3.7829]
[1729560773329,4.30695571,2643.9,2643.4,3.78292]
[1729560774224,4.59134257,2643.8,2643.0,4.61602]
[1729560774428,0.7915,2643.5,2643.0,3.78349]
[1729560774727,0.7915,2643.5,2643.0,7.56698]
[1729560775519,0.7915,2643.5,2643.1,3.78343]
[1729560776739,0.7915,2643.5,2643.2,3.78327]
[1729560776884,0.7915,2643.5,2643.2,3.81636981]